bitfinex-derivatives/quotes_ETHF0:USTF0_20240829
["timestamp","ask_amount","ask_price","bid_price","bid_amount"]
[1724940285989,0.0058317,2569.5,2569.3,3.59691]
[1724940286286,0.3949117,2569.5,2569.3,3.2078]
[1724940286583,0.38912,2569.3,2569.1,0.0058317]
[1724940286785,0.38912,2569.2,2569.1,0.0058317]
[1724940286974,4.08430601,2569.2,2569.1,0.0058317]
[1724940287280,0.3891,2569.4,2569.1,0.0058317]
[1724940287676,0.38911,2569.3,2569.1,0.0058317]
[1724940287883,4.15103937,2569.4,2569.1,0.0058317]
[1724940287884,0.38909,2569.4,2569.1,0.0058317]
[1724940288086,0.38909,2569.4,2569.1,0.3949717]
[1724940288285,0.0058317,2569.5,2569.2,3.59691]
[1724940288484,0.0058317,2569.5,2569.2,3.2078]
[1724940288680,0.0058317,2569.5,2569.4,0.38909]
[1724940289081,0.0058317,2569.5,2569.4,11.25383]
[1724940289285,1.38729,2570.4,2569.4,11.25383]
[1724940289286,4.00513,2570.5,2569.7,0.97262]
[1724940289481,0.38893,2570.5,2570.2,0.38897]
[1724940289686,4.40606702,2570.4,2570.1,3.2078]
[1724940289980,0.4149,2570.8,2570.1,3.2078]
[1724940290186,4.41189872,2570.7,2570.3,0.38895]
[1724940290394,0.0058317,2570.7,2570.3,0.38895]
[1724940290579,0.3947317,2570.7,2570.3,0.38895]
[1724940290785,0.3947317,2570.7,2570.1,3.2078]
[1724940290786,0.0058317,2570.7,2570.1,3.2078]
[1724940290985,0.38893,2570.5,2570.1,3.59678]
[1724940291192,0.38892,2570.6,2570.1,3.2078]
[1724940291380,0.38892,2570.6,2570.2,0.38896]
[1724940291889,0.38895,2570.4,2570.1,3.2078]
[1724940292285,4.32697848,2570.6,2570.1,3.2078]
[1724940292596,0.0058317,2570.7,2570.1,3.2078]
[1724940292597,0.38895,2570.4,2570.1,3.2078]
[1724940292784,7.2650796,2570.6,2569.9,0.4063]
[1724940292981,4.0572796,2570.3,2569.9,0.4063]
[1724940293286,0.97236,2570.5,2569.8,0.3913]
[1724940293487,0.38899,2570.1,2569.8,0.3913]
[1724940294190,0.38897,2570.3,2569.8,0.78032]
[1724940294379,4.28077643,2570.4,2569.9,3.2078]
[1724940294584,4.66973643,2570.4,2569.9,3.59682]
[1724940294783,4.66973643,2570.4,2569.9,4.00312]
[1724940294985,4.28077643,2570.4,2569.9,3.6141]
[1724940295193,4.28077643,2570.4,2570.0,0.389]
[1724940295384,4.66972643,2570.4,2570.0,0.389]
[1724940295588,0.39,2570.5,2569.9,3.2078]
[1724940295787,0.38898,2570.2,2569.9,3.2078]
[1724940295985,1.37221,2570.6,2569.9,3.2078]
[1724940295986,4.60350674,2570.3,2569.9,3.59681]
[1724940296185,0.38895,2570.4,2570.0,0.389]
[1724940296387,4.60348674,2570.5,2570.1,0.38899]
[1724940296590,7.8836317,2570.7,2570.2,3.2078]
[1724940296591,0.0058317,2570.7,2570.2,3.2078]
[1724940296789,0.3947317,2570.7,2570.3,0.38895]
[1724940296993,0.0058317,2570.7,2570.2,3.2078]
[1724940297288,0.38893,2570.5,2570.2,3.2078]
[1724940297489,4.37398583,2570.6,2569.6,0.8273]
[1724940297490,5.34629583,2570.6,2570.0,3.2078]
[1724940297697,4.37398583,2570.4,2570.0,3.2078]
[1724940297887,0.97233,2570.5,2570.0,3.5968]
[1724940297888,4.32004366,2570.5,2570.0,3.5968]
[1724940298090,0.38896,2570.3,2570.0,3.2078]
[1724940298389,0.38895,2570.4,2570.0,3.59679]
[1724940298887,4.19742175,2570.3,2570.0,3.59679]
[1724940299097,4.58638175,2570.3,2570.0,3.2078]
[1724940299402,4.19742175,2570.3,2570.0,3.5968]
[1724940299600,4.58638175,2570.3,2570.0,3.5968]
[1724940299790,4.19742175,2570.3,2569.7,3.2078]
[1724940300092,0.97238,2570.4,2569.8,0.38903]
[1724940300093,4.86898,2570.2,2569.8,0.38903]
[1724940300296,4.48,2570.2,2569.7,3.2078]
[1724940300601,4.08743646,2570.1,2570.0,3.2078]
[1724940300793,0.97223,2570.8,2570.0,3.2078]
[1724940300794,3.2078,2572.1,2571.2,0.38881]
[1724940301091,3.2078,2572.1,2571.2,3.2078]
[1724940301092,7.53682384,2571.8,2571.2,3.2078]
[1724940301292,0.97187,2571.7,2571.2,3.2078]
[1724940301495,0.9718,2571.9,2571.2,3.2078]
[1724940301793,4.31341451,2571.7,2571.3,0.0058317]
[1724940302198,0.38876,2571.6,2571.3,0.0058317]
[1724940302492,0.38878,2571.5,2571.3,0.0058317]
[1724940302800,0.38877,2571.6,2571.3,0.0058317]
[1724940303186,4.70216451,2571.7,2571.3,0.0058317]
[1724940303387,4.31341451,2571.7,2571.3,0.0058317]
[1724940303590,0.0058317,2571.8,2571.5,3.2078]
[1724940303892,0.0058317,2571.8,2571.6,0.4004]
[1724940304203,0.0058317,2571.8,2571.6,4.7045]
[1724940304392,0.0058317,2571.8,2571.7,3.8888]
[1724940305598,0.0058317,2571.8,2571.7,4.27755]
[1724940305805,0.0058317,2571.8,2571.7,10.27755]
[1724940305993,0.0058317,2571.8,2571.7,9.8888]
[1724940306194,0.0058317,2571.8,2571.7,3.8888]
[1724940306502,0.0058317,2571.8,2571.6,0.4004]
[1724940306799,0.0058317,2571.8,2571.6,4.67796]
[1724940307298,0.0058317,2571.8,2571.6,0.4004]
[1724940307699,0.0058317,2571.8,2571.6,4.67795]
[1724940308103,0.0058317,2571.8,2571.7,0.38875]
[1724940308303,0.0058317,2571.8,2571.7,4.27755]
[1724940308497,0.0058317,2571.8,2571.7,3.8888]
[1724940308698,0.0058317,2571.8,2571.7,4.27755]
[1724940309095,4.893,2572.6,2571.7,9.8888]
[1724940309301,4.893,2572.6,2572.2,3.2078]
[1724940309605,0.38867,2572.3,2571.9,3.2078]
[1724940309795,0.38867,2572.2,2571.9,3.2078]
[1724940309996,4.23684942,2572.2,2571.9,3.2078]
[1724940310400,0.0058317,2572.3,2571.9,3.59651]
[1724940310699,0.38869,2572.1,2571.9,3.2078]
[1724940311005,0.3887,2572.0,2571.9,3.2078]
[1724940311202,4.74479068,2572.0,2571.9,3.2078]
[1724940311509,0.4282,2572.2,2571.9,3.2078]
[1724940311703,0.81687,2572.2,2571.9,3.2078]
[1724940311901,0.0058317,2572.3,2572.1,0.38868]
[1724940312092,0.0058317,2572.3,2572.2,3.2078]
[1724940312595,0.0058317,2572.3,2572.1,0.38867]
[1724940312797,0.0058317,2572.3,2571.9,3.2078]
[1724940313099,0.0058317,2572.3,2572.1,0.38868]
[1724940313298,0.0058317,2572.3,2572.2,3.59647]
[1724940313698,0.0058317,2572.3,2572.2,7.48447]
[1724940314306,0.0058317,2572.3,2572.2,3.2078]
[1724940314506,0.0058317,2572.3,2571.6,0.4004]
[1724940314507,0.0058317,2572.3,2571.9,3.2078]
[1724940314802,0.38868,2572.2,2571.9,3.2078]
[1724940315220,4.46765597,2572.1,2571.9,3.2078]
[1724940315401,0.0058317,2572.3,2571.9,3.2078]
[1724940315711,0.0058317,2572.3,2572.2,3.59647]
[1724940315899,0.0058317,2572.3,2572.2,7.48447]
[1724940317904,0.0058317,2572.3,2572.2,7.0958]
[1724940318107,0.0058317,2572.3,2572.2,7.48447]
[1724940318797,0.0058317,2572.3,2572.2,13.48447]
[1724940319205,0.0058317,2572.3,2572.2,7.48447]
[1724940320609,0.0058317,2572.3,2572.2,13.48447]
[1724940320806,0.0058317,2572.3,2572.2,7.48447]
[1724940321002,0.0058317,2572.3,2572.2,13.48447]
[1724940321205,0.4048,2573.1,2572.2,14.06748]
[1724940321497,0.4048,2573.1,2572.9,3.59636]
[1724940321709,0.4048,2573.1,2572.9,3.2078]
[1724940321710,0.38854,2573.1,2572.9,3.2078]
[1724940322104,0.79133,2573.2,2572.9,3.59635]
[1724940322311,0.97126,2573.4,2572.9,3.2078]
[1724940322609,0.38858,2572.8,2572.7,0.0058317]
[1724940322905,1.36004,2572.8,2572.7,0.0058317]
[1724940323096,5.24724,2572.8,2572.7,0.0058317]
[1724940323302,0.38857,2572.9,2572.7,0.3944217]
[1724940323501,0.97132,2573.2,2572.7,0.3944117]
[1724940323708,0.38858,2572.8,2572.7,0.0058317]
[1724940325601,0.3928,2572.9,2572.7,0.0058317]
[1724940326008,0.38858,2572.8,2572.7,0.0058317]
[1724940326818,0.78138,2572.9,2572.7,0.0058317]
[1724940327017,0.38856,2573.0,2572.7,0.3944217]
[1724940327207,4.58188,2573.3,2572.7,0.0058317]
[1724940327208,0.38857,2572.9,2572.7,0.0058317]
[1724940327411,4.0731094,2573.1,2572.7,0.0058317]
[1724940327611,4.5006094,2573.2,2572.7,0.0058317]
[1724940327612,0.38858,2572.8,2572.7,0.0058317]
[1724940328120,5.24724,2572.8,2572.7,0.0058317]
[1724940329617,8.4780253,2572.8,2572.7,0.0058317]
[1724940329925,3.59637,2572.9,2572.7,0.3944217]
[1724940330109,0.38854,2573.1,2572.9,0.38856]
[1724940330506,5.15447849,2573.1,2572.7,0.0058317]
[1724940330719,5.15447849,2573.1,2572.7,0.3944217]
[1724940331018,4.18312849,2573.1,2572.7,0.0058317]
[1724940331221,0.4275,2573.2,2572.9,0.38856]
[1724940331421,0.4275,2573.2,2572.8,3.2078]
[1724940331624,0.4028,2573.3,2573.2,0.38852]
[1724940331814,3.2078,2573.6,2572.8,3.2078]
[1724940332115,0.38856,2573.0,2572.8,3.2078]
[1724940332316,0.38858,2572.8,2572.7,0.0058317]
[1724940332516,0.8243,2572.9,2572.7,0.0058317]
[1724940333120,4.25703902,2572.8,2572.7,0.0058317]
[1724940333521,0.38853,2573.1,2572.8,0.38857]
[1724940333720,0.38853,2573.2,2572.9,0.38856]
[1724940333921,4.47181554,2573.2,2572.9,0.38855]
[1724940334119,1.21279,2573.4,2573.1,3.59633]
[1724940334520,0.8243,2573.4,2573.2,0.38852]
[1724940334730,1.21279,2573.4,2573.1,3.59633]
[1724940334933,0.8243,2573.4,2573.2,0.38851]
[1724940335326,0.8243,2573.4,2573.3,0.3885]
[1724940335527,0.38848,2573.5,2573.2,0.38851]
[1724940335726,0.38847,2573.6,2573.3,0.3885]
[1724940336033,4.11744371,2573.5,2573.3,0.3885]
[1724940336328,0.38848,2573.5,2573.3,0.3885]
[1724940336522,0.38847,2573.6,2573.3,0.3885]
[1724940336719,0.38849,2573.4,2573.1,3.2078]
[1724940336924,0.3885,2573.4,2573.2,0.38852]
[1724940337131,0.3885,2573.4,2573.1,3.2078]
[1724940337438,0.38852,2573.2,2573.1,3.2078]
[1724940337629,0.38852,2573.2,2573.0,0.38855]
[1724940337830,0.38852,2573.2,2572.9,0.38855]
[1724940338333,3.8864,2573.2,2572.8,3.2078]
[1724940338632,4.25396231,2573.1,2572.8,3.2078]
[1724940338822,0.3885,2573.4,2573.1,0.38853]
[1724940339023,4.55248016,2573.4,2573.2,0.38852]
[1724940339223,5.52165016,2573.6,2573.1,3.2078]
[1724940339224,0.38848,2573.5,2573.1,3.2078]
[1724940339527,0.38841,2574.0,2573.4,3.2078]
[1724940339827,5.41678177,2573.9,2573.4,3.2078]
[1724940340028,1.35758,2573.8,2573.4,3.2078]
[1724940340234,1.35966,2573.5,2573.4,3.2078]
[1724940340431,4.77245232,2573.7,2573.3,0.3885]
[1724940340635,4.44571177,2573.5,2573.4,0.38848]
[1724940340945,0.3865,2573.8,2573.3,3.2078]
[1724940341230,0.38844,2573.7,2573.5,0.38846]
[1724940341429,0.77494,2573.8,2573.5,0.38846]
[1724940342035,0.77494,2573.8,2573.0,0.8506]
[1724940342036,0.97112,2573.7,2573.0,3.6307]
[1724940342225,4.2956159,2573.7,2573.0,3.6307]
[1724940342423,0.38846,2573.6,2573.3,0.38849]
[1724940342832,0.38847,2573.5,2573.2,0.38851]
[1724940343027,4.43230251,2573.5,2573.3,0.3885]
[1724940343228,4.43230251,2573.5,2573.2,0.38851]
[1724940343534,0.38848,2573.5,2573.2,0.38851]
[1724940343833,1.35759,2573.8,2573.0,3.2078]
[1724940343834,4.04383251,2573.4,2573.0,3.2078]
[1724940344038,0.38853,2573.1,2573.0,3.2078]
[1724940344241,0.4187,2573.4,2573.0,3.2078]
[1724940344533,0.75705355,2573.1,2573.0,3.2078]
[1724940344725,0.38853,2573.1,2573.0,3.2078]
[1724940344926,5.63527,2573.1,2573.0,3.2078]
[1724940345134,10.01658391,2573.1,2573.0,3.2078]
[1724940345524,9.04524391,2573.1,2573.0,3.2078]
[1724940345935,4.77031391,2573.1,2573.0,3.2078]
[1724940346231,9.04524391,2573.1,2573.0,3.2078]
[1724940346430,0.38857,2572.9,2572.7,0.0058317]
[1724940346739,4.77031391,2573.1,2572.7,0.3944117]
[1724940346934,4.77031391,2573.1,2572.7,0.0058317]
[1724940347235,0.97138,2573.0,2572.7,0.0058317]
[1724940347538,0.38858,2572.8,2572.7,0.0058317]
[1724940348034,0.38864,2572.4,2572.3,3.2078]
[1724940348240,0.3887,2572.0,2571.8,3.2078]
[1724940348431,0.97171,2572.2,2571.5,3.2078]
[1724940348745,4.25273758,2571.9,2571.5,3.2078]
[1724940349038,0.38872,2571.9,2571.5,3.59657]
[1724940349245,0.38876,2571.6,2571.5,3.2078]
[1724940349551,4.48,2571.6,2571.0,3.2078]
[1724940349731,0.3889,2570.7,2570.5,3.2078]
[1724940349934,4.48,2571.1,2570.5,3.2078]
[1724940350131,4.48,2571.1,2569.8,6.8668833]
[1724940350132,11.96474114,2570.6,2569.8,5.69952912]
[1724940350434,4.48,2570.0,2569.4,3.2078]
[1724940350632,0.38903,2569.9,2569.4,3.2136317]
[1724940350838,0.30593034,2569.9,2569.7,3.2078]
[1724940351433,0.30593034,2569.9,2569.4,0.0058317]
[1724940351633,0.30593034,2569.9,2569.4,3.2136317]
[1724940351829,3.90276034,2569.9,2569.4,3.2136317]
[1724940352036,0.69495034,2569.9,2569.4,3.2136317]
[1724940352240,0.69495034,2569.9,2569.4,0.0058317]
[1724940352241,3.51373034,2569.9,2569.4,0.0058317]
[1724940353341,0.30593034,2569.9,2569.4,3.2136317]
[1724940353538,0.30593034,2569.9,2569.7,3.2078]
[1724940353941,0.0058317,2570.0,2569.7,3.2078]
[1724940355133,4.22286286,2569.9,2569.7,3.2078]
[1724940355339,4.22286286,2569.9,2569.4,3.2136317]
[1724940355647,0.0058317,2570.0,2569.5,0.38907]
[1724940355847,0.0058317,2570.0,2569.7,3.2078]
[1724940356238,4.42360804,2569.9,2569.8,0.38903]
[1724940356549,0.4259,2571.0,2569.8,9.8912]
[1724940356844,4.32645028,2570.8,2570.5,0.38892]
[1724940357049,4.32645028,2570.8,2570.4,3.2078]
[1724940357345,0.38885,2571.1,2570.4,3.59674]
[1724940357542,0.0058317,2571.0,2570.7,3.2078]
[1724940357737,4.33228198,2571.0,2570.7,3.2078]
[1724940357940,0.3946817,2571.0,2570.6,0.0058317]
[1724940358141,0.0058317,2571.0,2570.6,0.0058317]
[1724940358339,4.23494598,2570.9,2570.6,0.0058317]
[1724940358849,4.62381598,2570.9,2570.6,0.0058317]
[1724940359157,4.23494598,2570.9,2570.6,0.0058317]
[1724940359744,0.0058317,2571.0,2570.7,44.0078]
[1724940359957,0.0058317,2571.0,2570.7,3.2078]
[1724940360248,4.12370319,2570.9,2570.8,3.59668]
[1724940360543,0.0058317,2571.0,2570.8,47.8974]
[1724940360744,0.0058317,2571.0,2570.9,4.27847]
[1724940361251,0.0058317,2571.0,2570.9,3.8896]
[1724940361549,0.0058317,2571.0,2570.9,4.27847]
[1724940363643,0.0058317,2571.0,2570.8,44.0078]
[1724940363849,0.0058317,2571.0,2570.8,44.39667]
[1724940364047,0.0058317,2571.0,2570.8,44.0078]
[1724940364442,0.0058317,2571.0,2570.8,44.39667]
[1724940364642,0.0058317,2571.0,2570.9,0.38887]
[1724940365341,0.0058317,2571.0,2570.9,4.27847]
[1724940365649,0.0058317,2571.0,2570.9,10.27847]
[1724940366145,1.7e-06,2571.0,2570.9,11.25064]
[1724940366354,1.7e-06,2571.0,2570.9,12.22281]
[1724940366943,1.7e-06,2571.0,2570.9,14.16716]
[1724940367946,0.3686317,2572.5,2572.1,0.38868]
[1724940368146,0.8475,2572.7,2572.0,3.2078]
[1724940368354,4.36891439,2572.5,2572.0,3.2078]
[1724940368646,4.36891439,2572.5,2572.2,0.38866]
[1724940368647,0.38863,2572.5,2572.2,0.38866]
[1724940368853,0.38862,2572.6,2572.2,0.38866]
[1724940369152,1.2361,2572.7,2572.3,3.2078]
[1724940369349,1.2361,2572.7,2572.3,3.59645]
[1724940369545,0.38861,2572.6,2572.3,3.59645]
[1724940369747,1.2361,2572.7,2572.3,3.59645]
[1724940369942,0.38864,2572.4,2572.3,3.2078]
[1724940370251,0.38864,2572.4,2572.1,0.0058317]
[1724940370453,4.05263674,2572.6,2572.2,3.2078]
[1724940370649,0.42,2572.7,2572.5,0.38862]
[1724940370849,4.68205347,2572.6,2572.2,3.2078]
[1724940371154,10.46518,2572.3,2572.2,3.59647]
[1724940371761,10.46518,2572.3,2572.2,8.45615]
[1724940372848,10.46518,2572.3,2572.2,14.45615]
[1724940373249,10.46518,2572.3,2572.2,7.48447]
[1724940374054,10.46518,2572.3,2572.2,3.59647]
[1724940374658,9.88209349,2572.3,2572.2,7.48447]
[1724940375153,9.88209349,2572.3,2572.2,3.59647]
[1724940377255,9.88209349,2572.3,2572.2,7.48447]
[1724940377450,8.91043597,2572.3,2572.2,15.42783]
[1724940377755,8.91043597,2572.3,2572.2,14.45615]
[1724940378255,8.91043597,2572.3,2572.2,8.45615]
[1724940378454,8.91043597,2572.3,2572.2,7.48447]
[1724940378849,8.91043597,2572.3,2572.2,14.45615]
[1724940379249,8.91043597,2572.3,2572.2,15.42783]
[1724940379957,3.2393038,2572.3,2572.2,17.3712]
[1724940380159,0.4387,2573.7,2572.5,1.94311]
[1724940380349,0.4387,2573.7,2573.4,0.38849]
[1724940380547,4.63202739,2573.7,2573.6,0.38846]
[1724940380752,0.4387,2573.7,2573.6,0.38846]
[1724940381658,0.4565,2573.9,2573.8,0.38843]
[1724940382054,0.4565,2573.9,2573.8,4.27403]
[1724940382353,0.38831,2574.6,2574.3,0.38834]
[1724940382653,4.295885,2574.5,2574.1,3.2078]
[1724940383045,0.38835,2574.4,2574.1,3.59618]
[1724940383248,4.295885,2574.5,2574.1,3.2078]
[1724940383445,4.684215,2574.5,2574.1,3.59618]
[1724940383665,4.295885,2574.5,2574.1,3.2078]
[1724940383852,8.180685,2574.5,2573.8,3.2078]
[1724940384054,0.38837,2574.2,2573.8,3.59622]
[1724940384255,0.38841,2573.9,2573.8,3.2078]
[1724940384544,0.38841,2573.9,2573.6,5.478]
[1724940384545,0.38841,2574.0,2573.6,5.86646]
[1724940384759,0.38842,2573.9,2573.6,5.478]
[1724940384964,0.38841,2574.0,2573.6,5.86646]
[1724940385168,0.4218,2574.1,2573.8,3.59622]
[1724940385456,0.38841,2574.0,2573.8,3.2078]
[1724940385852,0.4218,2574.1,2573.8,3.59622]
[1724940386050,0.3884,2574.0,2573.8,3.2078]
[1724940386248,0.81019,2574.1,2573.8,3.2078]
[1724940386457,0.3884,2574.0,2573.8,3.2078]
[1724940386657,0.81019,2574.1,2573.8,3.2078]
[1724940386854,0.38841,2573.9,2573.8,3.2078]
[1724940387046,4.16861422,2573.9,2573.6,5.478]
[1724940387253,0.38844,2573.8,2573.6,5.478]
[1724940387565,4.16861422,2573.7,2573.6,5.478]
[1724940387756,4.55705422,2573.7,2573.6,5.478]
[1724940387954,8.44265422,2573.7,2573.6,5.478]
[1724940388173,0.38847,2573.5,2573.4,0.0058317]
[1724940388461,4.16861422,2573.7,2573.4,0.0058317]
[1724940388863,0.38847,2573.6,2573.4,0.0058317]
[1724940389052,4.16861422,2573.7,2573.4,0.3943117]
[1724940389260,0.38846,2573.6,2573.4,0.0058317]
[1724940389460,4.39306322,2573.7,2573.4,0.0058317]
[1724940389652,5.20233322,2573.5,2573.4,0.0058317]
[1724940389855,0.80927,2573.5,2573.4,0.0058317]
[1724940390157,0.3885,2573.3,2573.2,7.0948]
[1724940390358,0.3885,2573.3,2573.2,3.2078]
[1724940390753,8.37857538,2573.3,2573.2,3.2078]
[1724940390954,7.99007538,2573.3,2572.9,3.2078]
[1724940391155,0.38858,2572.8,2572.7,5.476]
[1724940391355,1.36014,2572.6,2572.5,0.0058317]
[1724940391762,0.38866,2572.3,2571.9,7.78751]
[1724940391960,4.06839827,2572.6,2571.9,3.2078]
[1724940392262,3.91952113,2572.2,2571.6,3.2078]
[1724940392559,7.6878,2572.3,2571.6,3.2078]
[1724940392761,7.6878,2572.3,2571.6,3.2136317]
[1724940392762,0.4187,2572.1,2571.6,3.2136317]
[1724940392954,0.4245317,2572.1,2571.6,3.2136317]
[1724940393156,0.4245317,2572.1,2572.0,3.2078]
[1724940393355,0.0058317,2572.1,2572.0,7.4845]
[1724940395463,0.0058317,2572.1,2572.0,13.4845]
[1724940395860,0.0058317,2572.1,2572.0,17.9645]
[1724940396066,0.0058317,2572.1,2572.0,58.7645]
[1724940396364,0.0058317,2572.1,2572.0,52.7645]
[1724940396564,0.0058317,2572.1,2572.0,58.7645]
[1724940397065,0.0058317,2572.1,2572.0,52.7645]
[1724940397477,0.0058317,2572.1,2571.8,0.38873]
[1724940397667,0.0058317,2572.1,2571.9,0.38871]
[1724940398062,0.0058317,2572.1,2571.7,44.0078]
[1724940398063,0.0058317,2572.1,2572.0,3.5965]
[1724940398570,0.0058317,2572.1,2572.0,17.9645]
[1724940398571,1.7e-06,2572.1,2572.0,17.9645]
[1724940399065,1.7e-06,2572.1,2572.0,18.93626]
[1724940399269,1.7e-06,2572.1,2572.0,19.90802]
[1724940399673,0.97116,2573.6,2572.9,0.38856]
[1724940399973,0.97116,2573.6,2573.0,3.2078]
[1724940399974,4.40239182,2573.4,2573.0,3.2078]
[1724940400163,0.38851,2573.3,2573.0,3.59634]
[1724940400368,0.38852,2573.2,2573.0,3.2078]
[1724940400565,4.40239182,2573.2,2573.0,3.59634]
[1724940401071,0.38852,2573.2,2573.0,3.2078]
[1724940401572,3.8864,2573.2,2572.8,0.0058317]
[1724940401767,0.0058317,2573.4,2572.8,0.0058317]
[1724940401768,0.38856,2572.9,2572.8,0.0058317]
[1724940401970,0.38856,2573.0,2572.8,0.0058317]
[1724940402570,0.0058317,2573.4,2573.3,0.3885]
[1724940402763,0.0058317,2573.4,2573.3,3.5963]
[1724940403075,0.0058317,2573.4,2573.3,11.9619]
[1724940403466,0.0058317,2573.4,2573.3,7.4819]
[1724940404865,1.7e-06,2573.4,2573.3,19.90444]
[1724940405068,1.7e-06,2573.4,2573.3,20.90975411]
[1724940405268,1.7e-06,2573.4,2573.3,19.90444]
[1724940405469,1.7e-06,2573.4,2573.3,20.90975411]
[1724940405669,1.7e-06,2573.4,2573.3,19.90444]
[1724940405872,1.7e-06,2573.4,2573.3,20.90975411]
[1724940406062,1.7e-06,2573.4,2573.3,19.90444]
[1724940406268,1.7e-06,2573.4,2573.3,21.29855411]
[1724940406462,1.7e-06,2573.4,2573.3,22.23549901]
[1724940406668,0.4473,2574.5,2573.6,0.97115]
[1724940406669,0.4273017,2574.5,2573.6,0.97115]
[1724940406974,0.4273017,2574.5,2574.3,3.59615]
[1724940407172,0.4273017,2574.5,2574.3,3.2078]
[1724940407372,0.4273017,2574.5,2573.9,3.2078]
[1724940407575,4.32010758,2574.4,2573.9,3.2078]
[1724940407779,4.32010758,2574.4,2573.9,3.6020417]
[1724940407975,4.32010758,2574.4,2573.9,3.2136317]
[1724940408178,4.70844758,2574.4,2574.0,0.3884]
[1724940408367,4.32010758,2574.4,2573.9,3.2136317]
[1724940408770,0.8156317,2574.5,2573.9,3.2136317]
[1724940409077,0.8156317,2574.5,2574.2,3.2078]
[1724940409078,0.38834,2574.4,2574.2,3.2078]
[1724940409278,4.32367821,2574.4,2574.2,3.2078]
[1724940409480,4.32367821,2574.4,2574.3,0.38835]
[1724940409673,4.32367821,2574.4,2574.2,3.2078]
[1724940409674,0.4273017,2574.5,2574.2,3.2078]
[1724940409866,0.4273017,2574.5,2574.2,3.59616]
[1724940410676,0.4273017,2574.5,2574.2,3.2078]
[1724940410880,0.4273017,2574.5,2574.3,0.38834]
[1724940411176,0.4273017,2574.5,2574.2,3.59616]
[1724940411378,0.4273017,2574.5,2574.3,0.38835]
[1724940411570,0.4273017,2574.5,2574.2,3.2078]
[1724940411771,0.8156317,2574.5,2574.2,3.2078]
[1724940412170,0.38834,2574.4,2574.2,3.2078]
[1724940412777,0.38835,2574.3,2574.2,3.2078]
[1724940413075,0.38834,2574.4,2574.2,3.2078]
[1724940413273,0.8156417,2574.5,2574.2,3.59617]
[1724940413671,0.38829,2574.8,2574.2,3.2078]
[1724940413868,0.3883,2574.7,2574.4,0.38832]
[1724940414075,4.38011438,2574.7,2574.6,3.59611]
[1724940414380,0.81077,2574.9,2574.6,3.2078]
[1724940414680,0.38829,2574.7,2574.6,3.2078]
[1724940414875,0.38828,2574.8,2574.6,3.2078]
[1724940415068,4.76839438,2574.8,2574.6,3.2078]
[1724940415271,4.76840438,2574.8,2574.6,3.2078]
[1724940415470,4.38011438,2574.8,2574.6,3.59611]
[1724940415874,4.76840438,2574.8,2574.6,3.2078]
[1724940416073,4.76840438,2574.8,2574.6,3.5961]
[1724940416271,4.76840438,2574.8,2574.6,3.2078]
[1724940416272,0.38829,2574.7,2574.6,3.2078]
[1724940416774,9.00160705,2574.7,2574.2,3.59616]
[1724940416981,0.38834,2574.4,2574.2,3.59616]
[1724940417577,0.38833,2574.5,2574.3,0.38835]
[1724940417775,0.38833,2574.5,2574.2,3.59616]
[1724940418081,0.38833,2574.5,2574.3,0.38835]
[1724940418682,5.11760705,2574.7,2574.4,0.38834]
[1724940418683,0.38832,2574.6,2574.4,0.38834]
[1724940419076,4.14686705,2574.7,2574.3,0.38835]
[1724940419077,0.38833,2574.5,2574.3,0.38835]
[1724940419480,5.38126073,2574.8,2574.4,0.38833]
[1724940419680,5.38126073,2574.8,2574.2,3.2078]
[1724940419681,0.38832,2574.5,2574.3,0.38834]
[1724940419876,0.38832,2574.5,2574.4,0.38834]
[1724940420078,4.79884073,2574.7,2574.2,3.2078]
[1724940420386,0.38834,2574.4,2574.2,3.59617]
[1724940420579,4.45349111,2574.5,2574.3,0.38835]
[1724940420779,0.38834,2574.4,2574.3,0.38835]
[1724940421491,0.38835,2574.3,2574.2,3.2078]
[1724940421694,0.84905,2574.3,2574.2,3.2078]
[1724940422391,0.4607,2574.3,2574.2,3.59617]
[1724940422682,0.3884,2574.0,2573.9,0.0058317]
[1724940422884,7.91287302,2574.3,2573.9,0.0058317]
[1724940423093,3.2078,2575.0,2574.3,0.97089]
[1724940423282,6.13556,2576.0,2574.9,3.2078]
[1724940423283,3.2078,2575.5,2574.9,3.2078]
[1724940423591,0.38816,2575.6,2575.2,0.38821]
[1724940423782,4.1010057,2575.4,2575.1,0.38822]
[1724940424087,0.38819,2575.4,2575.0,0.38824]
[1724940424279,0.38818,2575.5,2574.9,3.2136317]
[1724940424480,4.48,2575.7,2574.9,3.2136317]
[1724940424682,4.15041899,2575.3,2574.9,0.0058317]
[1724940424891,0.38823,2575.2,2574.9,0.0058317]
[1724940425186,4.1635723,2575.2,2575.0,0.38824]
[1724940425395,4.1635723,2575.3,2574.9,3.2136317]
[1724940425583,4.48,2575.7,2575.0,0.38824]
[1724940425783,4.1635723,2575.5,2574.9,3.2136317]
[1724940425980,0.38824,2575.1,2574.9,3.2136317]
[1724940426285,7.6878,2575.1,2574.2,3.2078]
[1724940426486,0.38835,2574.4,2573.8,0.38843]
[1724940426687,0.4493,2574.3,2573.7,48.4878]
[1724940426894,0.4493,2574.3,2574.0,3.2078]
[1724940427282,0.4493,2574.3,2573.7,45.28]
[1724940427283,0.3884,2574.0,2573.7,3.2078]
[1724940427502,4.8684,2574.0,2573.9,0.0058317]
[1724940427785,4.8684,2574.0,2573.1,3.2078]
[1724940427786,0.97108,2573.8,2573.1,3.2078]
[1724940427982,0.38852,2573.2,2573.1,3.2078]
[1724940428182,4.1168232,2573.7,2573.1,3.2078]
[1724940428382,4.1168232,2573.7,2573.4,3.2078]
[1724940428595,4.27750605,2573.8,2573.4,3.2078]
[1724940428778,0.0058317,2573.8,2573.6,0.38845]
[1724940428984,0.0058317,2573.8,2573.4,3.2078]
[1724940429184,0.0058317,2573.8,2573.7,3.59624]
[1724940429780,0.0058317,2573.8,2573.7,14.07624]
[1724940429981,3.2078,2575.0,2574.3,0.38834]
[1724940430287,4.95077174,2574.9,2574.3,3.2078]